[Event "European Online Club-ch-D 2021"]
[Site "Online"]
[Date "2021.03.27"]
[Round "5.7"]
[White "Petkidis, Anthony"]
[Black "Maurizzi, Marc Andria"]
[Result "1-0"]
[ECO "B33"]
[WhiteElo "2401"]
[BlackElo "2461"]
[Annotator "ChessBase"]
[PlyCount "101"]
[EventDate "2021.03.27"]
[EventType "team-tourn"]
[EventCountry "NET"]
[SourceTitle "playchess.com"]
[Source "ChessBase"]
[SourceQuality "1"]
[TimeControl "900+5"]

1. e4 {[%emt 0:00:00]} c5 {[%emt 0:00:14]} 2. Nf3 {[%emt 0:00:03]} e6 {[%emt 0:00:02]} 3. d4 {[%emt 0:00:11]} cxd4 {[%emt 0:00:00]} 4. Nxd4 {[%emt 0:00:01]} Nf6 {[%emt 0:00:01]} 5. Nc3 {[%emt 0:00:03]} Nc6 {[%emt 0:00:02]} 6. Ndb5 {[%emt 0:00:08]} d6 {[%emt 0:00:05]} 7. Bf4 {[%emt 0:00:03]} e5 {[%emt 0:00:02]} 8. Bg5 {[%emt 0:00:01]} a6 {[%emt 0:00:02]} 9. Na3 {[%emt 0:00:02]} Be6 {[%emt 0:00:02]} 10. Nc4 {[%emt 0:00:32]} Rb8 {[%emt 0:00:03]} 11. Bxf6 {[%emt 0:00:46]} Qxf6 {[%emt 0:00:04]} 12. Nb6 {[%emt 0:02:45]} Qd8 {[%emt 0:01:23]} 13. Ncd5 {[%emt 0:00:11]} g6 {[%emt 0:00:26]} 14. Bc4 {[%emt 0:00:29]} Bg7 {[%emt 0:00:18]} 15. O-O {[%emt 0:00:03]} O-O {[%emt 0:00:03]} 16. a4 {[%emt 0:00:09]} f5 {[%emt 0:01:00]} 17. Qd3 {[%emt 0:00:17]} Kh8 {[%emt 0:00:22]} 18. f3 {[%emt 0:00:45]} Bh6 {[%emt 0:02:02]} 19. c3 {[%emt 0:00:32]} Qh4 {[%emt 0:01:25]} 20. g3 {[%emt 0:00:40]} Qd8 {[%emt 0:00:05]} 21. a5 {[%emt 0:00:36]} Nxa5 {[%emt 0:03:11]} 22. Ba2 {[%emt 0:03:30]} Nc6 {[%emt 0:00:36]} 23. b4 {[%emt 0:00:16]} Bg5 {[%emt 0:00:53]} 24. Kg2 {[%emt 0:00:09]} h5 {[%emt 0:00:14]} 25. Rad1 {[%emt 0:00:19]} f4 {[%emt 0:01:14]} 26. b5 {[%emt 0:01:00]} axb5 {[%emt 0:00:08]} 27. Qxb5 {[%emt 0:00:03]} Rf7 {[%emt 0:01:31]} 28. Bc4 {[%emt 0:00:14]} Qe8 {[%emt 0:00:48]} 29. Nb4 {[%emt 0:00:43]} fxg3 {[%emt 0:00:36]} 30. hxg3 {[%emt 0:00:09]} Nxb4 {[%emt 0:00:09]} 31. Qxe8+ {[%emt 0:00:06]} Rxe8 {[%emt 0:00:00]} 32. cxb4 {[%emt 0:00:04]} Rc7 {[%emt 0:00:06]} 33. Bxe6 {[%emt 0:00:29]} Rxe6 {[%emt 0:00:00]} 34. Nd5 {[%emt 0:00:47]} Rf7 {[%emt 0:00:04]} 35. Rd3 {[%emt 0:00:18]} Kg7 {[%emt 0:00:03]} 36. Rc3 {[%emt 0:00:06]} Re8 {[%emt 0:00:12]} 37. b5 {[%emt 0:00:06]} Ra8 {[%emt 0:00:07]} 38. Rf2 {[%emt 0:00:08]} Ra5 {[%emt 0:00:13]} 39. Rb3 {[%emt 0:00:07]} Bd8 {[%emt 0:00:07]} 40. Rc2 {[%emt 0:00:03]} Rd7 {[%emt 0:00:02]} 41. Rc8 {[%emt 0:00:05]} Kf7 {[%emt 0:00:05]} 42. Rb8 {[%emt 0:00:04]} Ra2+ {[%emt 0:00:09]} 43. Kh3 {[%emt 0:00:06]} Rc2 {[%emt 0:00:00]} 44. Ra3 {[%emt 0:00:19]} Rb2 {[%emt 0:00:13]} 45. Raa8 {[%emt 0:00:05]} Be7 {[%emt 0:00:05]} 46. b6 {[%emt 0:00:11]} g5 {[%emt 0:00:07]} 47. Ra7 {[%emt 0:00:09]} Bd8 {[%emt 0:00:03]} 48. Rbxb7 {[%emt 0:00:12]} Rxb7 {[%emt 0:00:00]} 49. Rxb7+ {[%emt 0:00:01]} Ke6 {[%emt 0:00:03]} 50. Rh7 {[%emt 0:00:13]} Bxb6 {[%emt 0:00:03]} 51. Re7# {[%emt 0:00:02]} 1-0

[Event "European Online Club-ch-D 2021"]
[Site "Online"]
[Date "2021.03.27"]
[Round "5.8"]
[White "Medvegy, Zoltan"]
[Black "Fischer, Daniel"]
[Result "1-0"]
[ECO "A13"]
[WhiteElo "2527"]
[BlackElo "2276"]
[Annotator "ChessBase"]
[PlyCount "119"]
[EventDate "2021.03.27"]
[EventType "team-tourn"]
[EventCountry "NET"]
[SourceTitle "playchess.com"]
[Source "ChessBase"]
[SourceQuality "1"]
[TimeControl "900+5"]

1. Nf3 {[%emt 0:00:00]} d5 {[%emt 0:00:04]} 2. e3 {[%emt 0:00:03]} Nf6 {[%emt 0:00:03]} 3. c4 {[%emt 0:00:01]} e6 {[%emt 0:00:02]} 4. b3 {[%emt 0:00:08]} Bd6 {[%emt 0:00:04]} 5. Nc3 {[%emt 0:00:16]} b6 {[%emt 0:00:03]} 6. cxd5 {[%emt 0:00:14]} exd5 {[%emt 0:00:02]} 7. Bb2 {[%emt 0:00:19]} O-O {[%emt 0:00:17]} 8. d4 {[%emt 0:00:02]} Bb7 {[%emt 0:00:01]} 9. Bd3 {[%emt 0:00:05]} Ne4 {[%emt 0:00:52]} 10. O-O {[%emt 0:00:45]} a6 {[%emt 0:00:08]} 11. Qc2 {[%emt 0:00:41]} Re8 {[%emt 0:00:12]} 12. Ne5 {[%emt 0:02:00]} Nd7 {[%emt 0:07:57]} 13. Nxe4 {[%emt 0:01:30]} dxe4 {[%emt 0:00:21]} 14. Bxe4 {[%emt 0:00:23]} Bxe4 {[%emt 0:00:13]} 15. Qxe4 {[%emt 0:00:03]} Qe7 {[%emt 0:00:34]} 16. Rac1 {[%emt 0:02:05]} Nxe5 {[%emt 0:00:45]} 17. dxe5 {[%emt 0:00:04]} Bxe5 {[%emt 0:00:06]} 18. Qxe5 {[%emt 0:00:11]} Qxe5 {[%emt 0:00:02]} 19. Bxe5 {[%emt 0:00:02]} Rxe5 {[%emt 0:00:01]} 20. Rxc7 {[%emt 0:00:02]} Rd8 {[%emt 0:01:12]} 21. Rfc1 {[%emt 0:00:58]} Kf8 {[%emt 0:00:25]} 22. g3 {[%emt 0:00:28]} Rd2 {[%emt 0:00:22]} 23. R1c2 {[%emt 0:00:46]} Red5 {[%emt 0:00:24]} 24. Kg2 {[%emt 0:00:38]} a5 {[%emt 0:00:20]} 25. g4 {[%emt 0:01:50]} h5 {[%emt 0:00:39]} 26. h3 {[%emt 0:00:31]} hxg4 {[%emt 0:00:03]} 27. hxg4 {[%emt 0:00:02]} Rxc2 {[%emt 0:00:24]} 28. Rxc2 {[%emt 0:00:02]} b5 {[%emt 0:00:49]} 29. Rc8+ {[%emt 0:00:39]} Ke7 {[%emt 0:00:02]} 30. Ra8 {[%emt 0:00:02]} b4 {[%emt 0:00:12]} 31. Kg3 {[%emt 0:00:27]} g5 {[%emt 0:00:28]} 32. Kf3 {[%emt 0:00:28]} Rc5 {[%emt 0:00:07]} 33. Ke4 {[%emt 0:00:17]} Rc2 {[%emt 0:00:04]} 34. Rxa5 {[%emt 0:00:05]} Rxf2 {[%emt 0:00:01]} 35. Rxg5 {[%emt 0:00:06]} Rxa2 {[%emt 0:00:02]} 36. Rb5 {[%emt 0:00:03]} Rg2 {[%emt 0:00:12]} 37. Kf3 {[%emt 0:00:06]} Rb2 {[%emt 0:00:04]} 38. Rxb4 {[%emt 0:00:01]} Ke6 {[%emt 0:00:02]} 39. Rb8 {[%emt 0:00:10]} Rb1 {[%emt 0:00:20]} 40. Ke4 {[%emt 0:00:11]} Rg1 {[%emt 0:00:07]} 41. Rb6+ {[%emt 0:00:03]} Ke7 {[%emt 0:00:01]} 42. Kf3 {[%emt 0:00:13]} Rf1+ {[%emt 0:00:03]} 43. Kg2 {[%emt 0:00:04]} Re1 {[%emt 0:00:04]} 44. Kf2 {[%emt 0:00:02]} Rb1 {[%emt 0:00:03]} 45. b4 {[%emt 0:00:02]} Kd7 {[%emt 0:00:09]} 46. Rb7+ {[%emt 0:00:12]} Ke6 {[%emt 0:00:03]} 47. b5 {[%emt 0:00:03]} Kf6 {[%emt 0:00:13]} 48. b6 {[%emt 0:00:41]} Kg6 {[%emt 0:00:04]} 49. Rb8 {[%emt 0:00:04]} Rb4 {[%emt 0:00:06]} 50. b7 {[%emt 0:00:07]} Kg7 {[%emt 0:00:03]} 51. g5 {[%emt 0:00:02]} Rb5 {[%emt 0:00:06]} 52. e4 {[%emt 0:00:06]} Rb3 {[%emt 0:00:04]} 53. e5 {[%emt 0:00:02]} Rb6 {[%emt 0:00:07]} 54. Ke3 {[%emt 0:00:14]} Rb1 {[%emt 0:00:10]} 55. Kd2 {[%emt 0:00:04]} Rb6 {[%emt 0:00:03]} 56. Kd3 {[%emt 0:00:05]} Rb3+ {[%emt 0:00:03]} 57. Kc4 {[%emt 0:00:03]} Rb1 {[%emt 0:00:01]} 58. g6 {[%emt 0:00:10]} Rc1+ {[%emt 0:00:10]} 59. Kd3 {[%emt 0:00:03]} Rc7 {[%emt 0:00:09]} 60. Rg8+ {[%emt 0:00:06]} 1-0

[Event "European Online Club-ch-D 2021"]
[Site "Online"]
[Date "2021.03.27"]
[Round "5.10"]
[White "Howell, David W L"]
[Black "Ibrahimli, Murad"]
[Result "1-0"]
[ECO "A11"]
[WhiteElo "2658"]
[BlackElo "2436"]
[Annotator "ChessBase"]
[PlyCount "53"]
[EventDate "2021.03.27"]
[EventType "team-tourn"]
[EventCountry "NET"]
[SourceTitle "playchess.com"]
[Source "ChessBase"]
[SourceQuality "1"]
[TimeControl "900+5"]

1. Nf3 {[%emt 0:00:00]} Nf6 {[%emt 0:00:03]} 2. g3 {[%emt 0:00:06]} d5 {[%emt 0:00:06]} 3. Bg2 {[%emt 0:00:02]} c6 {[%emt 0:00:02]} 4. c4 {[%emt 0:00:23]} dxc4 {[%emt 0:00:16]} 5. O-O {[%emt 0:00:02]} Be6 {[%emt 0:00:29]} 6. Qc2 {[%emt 0:00:52]} Bd5 {[%emt 0:00:21]} 7. Re1 {[%emt 0:02:13]} Bxf3 {[%emt 0:02:46]} 8. Bxf3 {[%emt 0:00:04]} Nbd7 {[%emt 0:00:02]} 9. Bg2 {[%emt 0:01:55]} Ne5 {[%emt 0:00:48]} 10. Na3 {[%emt 0:04:19]} Qd4 {[%emt 0:00:36]} 11. Rb1 {[%emt 0:00:03]} Nfg4 {[%emt 0:03:37]} 12. Rf1 {[%emt 0:00:05]} e6 {[%emt 0:03:08]} 13. b3 {[%emt 0:00:44]} Bxa3 {[%emt 0:01:55]} 14. Bxa3 {[%emt 0:00:02]} O-O-O {[%emt 0:00:02]} 15. h3 {[%emt 0:01:06]} Nf6 {[%emt 0:00:31]} 16. Bb2 {[%emt 0:00:25]} Qc5 {[%emt 0:00:46]} 17. Rfd1 {[%emt 0:01:33]} c3 {[%emt 0:00:27]} 18. Bxc3 {[%emt 0:00:08]} Nd5 {[%emt 0:00:04]} 19. b4 {[%emt 0:01:28]} Qc4 {[%emt 0:00:01]} 20. Rb3 {[%emt 0:00:20]} Nxc3 {[%emt 0:00:15]} 21. Rxc3 {[%emt 0:00:01]} Qxb4 {[%emt 0:00:02]} 22. Rb1 {[%emt 0:00:12]} Qd4 {[%emt 0:00:03]} 23. d3 {[%emt 0:00:28]} Qd6 {[%emt 0:00:21]} 24. e3 {[%emt 0:00:05]} Kc7 {[%emt 0:00:10]} 25. d4 {[%emt 0:00:01]} Nd7 {[%emt 0:00:02]} 26. Rxb7+ {[%emt 0:00:03]} Kxb7 {[%emt 0:00:02]} 27. Rxc6 {[%emt 0:00:01]} 1-0

[Event "European Online Club-ch-D 2021"]
[Site "Online"]
[Date "2021.03.27"]
[Round "5.11"]
[White "Babazada, Khazar"]
[Black "McShane, Luke J"]
[Result "1/2-1/2"]
[ECO "C60"]
[WhiteElo "2409"]
[BlackElo "2674"]
[Annotator "ChessBase"]
[PlyCount "75"]
[EventDate "2021.03.27"]
[EventType "team-tourn"]
[EventCountry "NET"]
[SourceTitle "playchess.com"]
[Source "ChessBase"]
[SourceQuality "1"]
[TimeControl "900+5"]

1. e4 {[%emt 0:00:00]} e5 {[%emt 0:00:07]} 2. Nf3 {[%emt 0:00:03]} Nc6 {[%emt 0:00:02]} 3. Bb5 {[%emt 0:00:02]} a6 {[%emt 0:00:08]} 4. Ba4 {[%emt 0:00:08]} g6 {[%emt 0:00:16]} 5. c3 {[%emt 0:00:09]} d6 {[%emt 0:00:20]} 6. O-O {[%emt 0:00:11]} Bg7 {[%emt 0:00:12]} 7. h3 {[%emt 0:00:09]} Nge7 {[%emt 0:00:32]} 8. d4 {[%emt 0:00:10]} O-O {[%emt 0:00:21]} 9. dxe5 {[%emt 0:02:12]} dxe5 {[%emt 0:00:07]} 10. Qe2 {[%emt 0:00:05]} Be6 {[%emt 0:00:49]} 11. Rd1 {[%emt 0:00:28]} Qc8 {[%emt 0:00:12]} 12. Be3 {[%emt 0:02:07]} h6 {[%emt 0:01:40]} 13. Nbd2 {[%emt 0:01:00]} b6 {[%emt 0:00:04]} 14. Bb3 {[%emt 0:01:10]} f5 {[%emt 0:01:11]} 15. Bxe6+ {[%emt 0:01:58]} Qxe6 {[%emt 0:00:03]} 16. Qc4 {[%emt 0:00:02]} Kf7 {[%emt 0:00:02]} 17. g3 {[%emt 0:00:41]} Qxc4 {[%emt 0:01:50]} 18. Nxc4 {[%emt 0:00:05]} Rfd8 {[%emt 0:00:04]} 19. a4 {[%emt 0:00:33]} Ke6 {[%emt 0:00:22]} 20. Kf1 {[%emt 0:00:10]} Rxd1+ {[%emt 0:03:47]} 21. Rxd1 {[%emt 0:00:03]} Rg8 {[%emt 0:00:46]} 22. Ke2 {[%emt 0:00:17]} Nc8 {[%emt 0:00:26]} 23. b4 {[%emt 0:00:45]} fxe4 {[%emt 0:01:14]} 24. Nfd2 {[%emt 0:00:02]} Nd6 {[%emt 0:00:02]} 25. Nxd6 {[%emt 0:00:44]} cxd6 {[%emt 0:01:03]} 26. Bxb6 {[%emt 0:00:02]} Rb8 {[%emt 0:00:06]} 27. a5 {[%emt 0:00:09]} d5 {[%emt 0:00:01]} 28. Nb3 {[%emt 0:00:43]} Bf8 {[%emt 0:00:04]} 29. Bc5 {[%emt 0:00:09]} Bg7 {[%emt 0:00:14]} 30. Bb6 {[%emt 0:00:19]} Bf8 {[%emt 0:00:02]} 31. Bc5 {[%emt 0:00:16]} Bg7 {[%emt 0:00:03]} 32. Be3 {[%emt 0:00:03]} Bf8 {[%emt 0:00:20]} 33. h4 {[%emt 0:00:10]} h5 {[%emt 0:00:34]} 34. Bc5 {[%emt 0:00:07]} Bh6 {[%emt 0:00:04]} 35. Bb6 {[%emt 0:00:31]} Bf8 {[%emt 0:00:02]} 36. Bc5 {[%emt 0:00:15]} Bh6 {[%emt 0:00:01]} 37. Be3 {[%emt 0:00:02]} Bf8 {[%emt 0:00:02]} 38. Bc5 {[%emt 0:00:03]} 1/2-1/2

[Event "European Online Club-ch-D 2021"]
[Site "Online"]
[Date "2021.03.27"]
[Round "5.12"]
[White "Jones, Gawain C B"]
[Black "Eynullayev, Atilla"]
[Result "1-0"]
[ECO "B51"]
[WhiteElo "2670"]
[BlackElo "2347"]
[Annotator "ChessBase"]
[PlyCount "73"]
[EventDate "2021.03.27"]
[EventType "team-tourn"]
[EventCountry "NET"]
[SourceTitle "playchess.com"]
[Source "ChessBase"]
[SourceQuality "1"]
[TimeControl "900+5"]

1. e4 {[%emt 0:00:00]} c5 {[%emt 0:00:03]} 2. Nf3 {[%emt 0:00:06]} d6 {[%emt 0:00:01]} 3. Bb5+ {[%emt 0:00:06]} Nd7 {[%emt 0:00:02]} 4. d4 {[%emt 0:00:05]} cxd4 {[%emt 0:00:02]} 5. Qxd4 {[%emt 0:00:02]} a6 {[%emt 0:00:01]} 6. Bxd7+ {[%emt 0:00:02]} Bxd7 {[%emt 0:00:02]} 7. Nc3 {[%emt 0:00:02]} e5 {[%emt 0:00:02]} 8. Qd3 {[%emt 0:00:05]} Rc8 {[%emt 0:00:01]} 9. O-O {[%emt 0:00:25]} h6 {[%emt 0:00:09]} 10. Nd2 {[%emt 0:00:05]} Qc7 {[%emt 0:00:02]} 11. Rd1 {[%emt 0:00:38]} Bg4 {[%emt 0:00:03]} 12. Re1 {[%emt 0:00:06]} Be6 {[%emt 0:00:18]} 13. Nf1 {[%emt 0:00:48]} Nf6 {[%emt 0:00:04]} 14. Ne3 {[%emt 0:00:06]} Be7 {[%emt 0:00:04]} 15. a4 {[%emt 0:00:33]} O-O {[%emt 0:00:04]} 16. Rd1 {[%emt 0:01:06]} Rfd8 {[%emt 0:00:19]} 17. a5 {[%emt 0:00:35]} Qc5 {[%emt 0:02:02]} 18. Ra4 {[%emt 0:01:30]} Bf8 {[%emt 0:02:13]} 19. Qe2 {[%emt 0:01:23]} d5 {[%emt 0:03:28]} 20. exd5 {[%emt 0:00:05]} Bxd5 {[%emt 0:00:25]} 21. Ncxd5 {[%emt 0:02:08]} Nxd5 {[%emt 0:00:05]} 22. Rc4 {[%emt 0:02:52]} Qb5 {[%emt 0:04:39]} 23. Rxc8 {[%emt 0:00:22]} Qxe2 {[%emt 0:01:38]} 24. Rxd8 {[%emt 0:00:04]} Nf4 {[%emt 0:00:32]} 25. b3 {[%emt 0:00:32]} Ne6 {[%emt 0:00:25]} 26. R8d2 {[%emt 0:00:09]} Qb5 {[%emt 0:00:04]} 27. Rd5 {[%emt 0:00:05]} Qc6 {[%emt 0:00:13]} 28. Rxe5 {[%emt 0:00:13]} g6 {[%emt 0:00:01]} 29. Red5 {[%emt 0:00:23]} Bg7 {[%emt 0:00:05]} 30. Nc4 {[%emt 0:00:11]} h5 {[%emt 0:00:08]} 31. Be3 {[%emt 0:00:11]} Kh7 {[%emt 0:00:04]} 32. h3 {[%emt 0:00:14]} Bh6 {[%emt 0:00:09]} 33. Rd7 {[%emt 0:00:23]} Bxe3 {[%emt 0:00:09]} 34. Rxf7+ {[%emt 0:00:02]} Kg8 {[%emt 0:00:05]} 35. fxe3 {[%emt 0:00:01]} Ng5 {[%emt 0:00:06]} 36. Rd8+ {[%emt 0:00:09]} Kxf7 {[%emt 0:00:04]} 37. Ne5+ {[%emt 0:00:01]} 1-0

[Event "European Online Club-ch-D 2021"]
[Site "Online"]
[Date "2021.03.27"]
[Round "5.13"]
[White "Straka, Vojtech"]
[Black "Lopez Del Alamo, Antonio"]
[Result "1-0"]
[ECO "E92"]
[WhiteElo "2417"]
[BlackElo "2295"]
[Annotator "NA"]
[PlyCount "51"]
[EventDate "2021.03.27"]
[EventType "team-tourn"]
[EventCountry "NET"]
[SourceTitle "playchess.com"]
[Source "ChessBase"]
[SourceQuality "1"]
[TimeControl "900+5"]

1. c4 {[%emt 0:00:00]} g6 {[%emt 0:00:10]} 2. Nc3 {[%emt 0:00:34]} Bg7 {[%emt 0:00:04]} 3. d4 {[%emt 0:00:02]} Nf6 {[%emt 0:00:06]} 4. e4 {[%emt 0:00:03]} d6 {[%emt 0:00:04]} 5. Nf3 {[%emt 0:00:03]} O-O {[%emt 0:00:02]} 6. Be2 {[%emt 0:00:04]} e5 {[%emt 0:00:02]} 7. d5 {[%emt 0:00:04]} a5 {[%emt 0:00:05]} 8. Bg5 {[%emt 0:00:02]} h6 {[%emt 0:00:03]} 9. Bh4 {[%emt 0:00:01]} Na6 {[%emt 0:00:07]} 10. Nd2 {[%emt 0:00:03]} Qe8 {[%emt 0:00:06]} 11. a3 {[%emt 0:00:56]} Bd7 {[%emt 0:00:05]} 12. b3 {[%emt 0:00:03]} Nh7 {[%emt 0:00:04]} 13. O-O {[%emt 0:00:05]} h5 {[%emt 0:00:04]} 14. f3 {[%emt 0:00:04]} Bh6 {[%emt 0:00:05]} 15. Rb1 {[%emt 0:00:04]} Be3+ {[%emt 0:00:24]} 16. Kh1 {[%emt 0:00:03]} Bc5 {[%emt 0:00:03]} 17. Qc1 {[%emt 0:00:02]} f5 {[%emt 0:00:06]} 18. exf5 {[%emt 0:00:05]} gxf5 {[%emt 0:00:03]} 19. f4 {[%emt 0:00:02]} e4 {[%emt 0:01:05]} 20. b4 {[%emt 0:00:04]} axb4 {[%emt 0:00:50]} 21. axb4 {[%emt 0:00:03]} Nxb4 {[%emt 0:00:38]} 22. Rb3 {[%emt 0:00:03]} Nf6 {[%emt 0:06:03]} 23. Qb2 {[%emt 0:01:59]} Na6 {[%emt 0:00:09]} 24. Bxf6 {[%emt 0:00:15]} Rxf6 {[%emt 0:00:11]} 25. Ncxe4 {[%emt 0:00:02]} Rh6 {[%emt 0:00:40]} 26. Rg3+ {[%emt 0:00:25]} 1-0

[Event "European Online Club-ch-D 2021"]
[Site "Online"]
[Date "2021.03.27"]
[Round "5.14"]
[White "Sanchez Gonzalez, Sergio"]
[Black "Kusa, Jakub"]
[Result "1/2-1/2"]
[ECO "E91"]
[WhiteElo "2281"]
[BlackElo "2336"]
[Annotator "NA"]
[PlyCount "155"]
[EventDate "2021.03.27"]
[EventType "team-tourn"]
[EventCountry "NET"]
[SourceTitle "playchess.com"]
[Source "ChessBase"]
[SourceQuality "1"]
[TimeControl "900+5"]

1. c4 {[%emt 0:00:00]} Nf6 {[%emt 0:00:05]} 2. Nc3 {[%emt 0:01:26]} g6 {[%emt 0:00:11]} 3. e4 {[%emt 0:00:10]} d6 {[%emt 0:00:03]} 4. d4 {[%emt 0:00:02]} Bg7 {[%emt 0:00:10]} 5. h3 {[%emt 0:00:02]} O-O {[%emt 0:00:06]} 6. Nf3 {[%emt 0:00:02]} c6 {[%emt 0:00:21]} 7. Be2 {[%emt 0:00:03]} a6 {[%emt 0:00:18]} 8. a4 {[%emt 0:00:10]} a5 {[%emt 0:00:03]} 9. Be3 {[%emt 0:00:03]} Na6 {[%emt 0:00:14]} 10. Qd2 {[%emt 0:00:16]} e5 {[%emt 0:00:54]} 11. d5 {[%emt 0:00:07]} cxd5 {[%emt 0:00:44]} 12. cxd5 {[%emt 0:00:08]} Bd7 {[%emt 0:00:26]} 13. O-O {[%emt 0:00:16]} Rc8 {[%emt 0:00:32]} 14. Bd3 {[%emt 0:02:51]} Nc5 {[%emt 0:00:22]} 15. Bc2 {[%emt 0:00:03]} Qb6 {[%emt 0:00:15]} 16. Rfb1 {[%emt 0:00:25]} Qb4 {[%emt 0:00:32]} 17. Ne1 {[%emt 0:00:56]} Nb3 {[%emt 0:01:31]} 18. Bxb3 {[%emt 0:00:09]} Qxb3 {[%emt 0:00:03]} 19. f3 {[%emt 0:00:25]} Nh5 {[%emt 0:01:20]} 20. Nd3 {[%emt 0:00:08]} f5 {[%emt 0:01:08]} 21. Rc1 {[%emt 0:00:22]} fxe4 {[%emt 0:01:17]} 22. fxe4 {[%emt 0:00:04]} Qc4 {[%emt 0:00:57]} 23. b3 {[%emt 0:01:45]} Qa6 {[%emt 0:01:57]} 24. Kh2 {[%emt 0:00:03]} Nf4 {[%emt 0:00:09]} 25. Nf2 {[%emt 0:01:16]} Rc7 {[%emt 0:00:19]} 26. Rab1 {[%emt 0:01:15]} Rfc8 {[%emt 0:00:27]} 27. b4 {[%emt 0:00:11]} axb4 {[%emt 0:00:14]} 28. Rxb4 {[%emt 0:00:03]} Qa5 {[%emt 0:01:40]} 29. Rb3 {[%emt 0:00:04]} Bxa4 {[%emt 0:00:13]} 30. Bb6 {[%emt 0:00:03]} Qa6 {[%emt 0:00:04]} 31. Rb4 {[%emt 0:00:04]} Rc4 {[%emt 0:00:07]} 32. Rb2 {[%emt 0:01:50]} Bd7 {[%emt 0:00:20]} 33. Ng4 {[%emt 0:00:38]} Bxg4 {[%emt 0:00:03]} 34. hxg4 {[%emt 0:00:02]} Qa3 {[%emt 0:00:23]} 35. Rbc2 {[%emt 0:00:25]} Qb3 {[%emt 0:00:11]} 36. Be3 {[%emt 0:00:05]} Qb4 {[%emt 0:00:03]} 37. g3 {[%emt 0:00:09]} Qa3 {[%emt 0:00:04]} 38. Nb5 {[%emt 0:00:18]} Rxc2 {[%emt 0:00:02]} 39. Nxa3 {[%emt 0:00:11]} Rxc1 {[%emt 0:00:14]} 40. gxf4 {[%emt 0:00:09]} Ra1 {[%emt 0:00:02]} 41. Nb5 {[%emt 0:00:29]} Rca8 {[%emt 0:00:07]} 42. Nc3 {[%emt 0:00:44]} R8a3 {[%emt 0:00:07]} 43. f5 {[%emt 0:00:04]} Rb3 {[%emt 0:00:07]} 44. g5 {[%emt 0:00:04]} gxf5 {[%emt 0:00:02]} 45. exf5 {[%emt 0:00:02]} Raa3 {[%emt 0:00:02]} 46. Nd1 {[%emt 0:00:04]} Rd3 {[%emt 0:00:07]} 47. Qe2 {[%emt 0:00:07]} h6 {[%emt 0:00:06]} 48. f6 {[%emt 0:00:02]} Bh8 {[%emt 0:00:03]} 49. g6 {[%emt 0:00:02]} Bxf6 {[%emt 0:00:02]} 50. Qf3 {[%emt 0:00:04]} Kg7 {[%emt 0:00:10]} 51. Bxh6+ {[%emt 0:00:03]} Kxg6 {[%emt 0:00:02]} 52. Be3 {[%emt 0:00:04]} e4 {[%emt 0:00:02]} 53. Qxe4+ {[%emt 0:00:02]} Kg7 {[%emt 0:00:04]} 54. Qg4+ {[%emt 0:00:02]} Kf7 {[%emt 0:00:02]} 55. Qe6+ {[%emt 0:00:03]} Kg7 {[%emt 0:00:02]} 56. Kg2 {[%emt 0:00:04]} Rxd1 {[%emt 0:00:04]} 57. Qg4+ {[%emt 0:00:02]} Kf7 {[%emt 0:00:01]} 58. Qh5+ {[%emt 0:00:02]} Ke7 {[%emt 0:00:05]} 59. Qxd1 {[%emt 0:00:11]} Rxe3 {[%emt 0:00:02]} 60. Qb1 {[%emt 0:00:09]} Be5 {[%emt 0:00:03]} 61. Qxb7+ {[%emt 0:00:03]} Kf6 {[%emt 0:00:02]} 62. Qc8 {[%emt 0:00:02]} Rg3+ {[%emt 0:00:02]} 63. Kf2 {[%emt 0:00:02]} Rc3 {[%emt 0:00:01]} 64. Qe6+ {[%emt 0:00:02]} Kg5 {[%emt 0:00:02]} 65. Ke2 {[%emt 0:00:02]} Kf4 {[%emt 0:00:04]} 66. Qg6 {[%emt 0:00:07]} Re3+ {[%emt 0:00:05]} 67. Kd2 {[%emt 0:00:03]} Rg3 {[%emt 0:00:03]} 68. Qh7 {[%emt 0:00:03]} Rc3 {[%emt 0:00:04]} 69. Qh4+ {[%emt 0:00:25]} Kf5 {[%emt 0:00:03]} 70. Qh5+ {[%emt 0:00:03]} Ke4 {[%emt 0:00:03]} 71. Qh1+ {[%emt 0:00:06]} Kd4 {[%emt 0:00:06]} 72. Qg2 {[%emt 0:00:13]} Kc4 {[%emt 0:00:09]} 73. Qe4+ {[%emt 0:00:06]} Kc5 {[%emt 0:00:05]} 74. Qh1 {[%emt 0:00:06]} Rg3 {[%emt 0:00:10]} 75. Ke2 {[%emt 0:00:07]} Rc3 {[%emt 0:00:04]} 76. Kd2 {[%emt 0:00:03]} Rg3 {[%emt 0:00:08]} 77. Ke2 {[%emt 0:00:04]} Rc3 {[%emt 0:00:02]} 78. Kd2 {[%emt 0:00:02]} 1/2-1/2

[Event "European Online Club-ch-D 2021"]
[Site "Online"]
[Date "2021.03.27"]
[Round "5.15"]
[White "Sluka, Radek"]
[Black "Pascual Palomo, Lucia"]
[Result "0-1"]
[ECO "A02"]
[WhiteElo "2324"]
[BlackElo "2101"]
[Annotator "NA"]
[PlyCount "94"]
[EventDate "2021.03.27"]
[EventType "team-tourn"]
[EventCountry "NET"]
[SourceTitle "playchess.com"]
[Source "ChessBase"]
[SourceQuality "1"]
[TimeControl "900+5"]

1. f4 {[%emt 0:00:00]} e6 {[%emt 0:00:26]} 2. Nf3 {[%emt 0:00:05]} b6 {[%emt 0:00:02]} 3. b3 {[%emt 0:00:07]} Bb7 {[%emt 0:00:03]} 4. Bb2 {[%emt 0:00:07]} f5 {[%emt 0:00:02]} 5. e3 {[%emt 0:00:10]} Nf6 {[%emt 0:00:02]} 6. Be2 {[%emt 0:00:53]} g6 {[%emt 0:00:15]} 7. O-O {[%emt 0:00:17]} Bg7 {[%emt 0:00:03]} 8. a4 {[%emt 0:00:02]} a5 {[%emt 0:00:04]} 9. Na3 {[%emt 0:00:06]} O-O {[%emt 0:00:04]} 10. Nc4 {[%emt 0:00:51]} d6 {[%emt 0:00:32]} 11. Ng5 {[%emt 0:00:58]} Qe7 {[%emt 0:00:27]} 12. Bf3 {[%emt 0:00:09]} Bxf3 {[%emt 0:00:41]} 13. Nxf3 {[%emt 0:00:19]} Nbd7 {[%emt 0:00:08]} 14. Nd4 {[%emt 0:00:40]} Nc5 {[%emt 0:00:26]} 15. d3 {[%emt 0:00:41]} Ng4 {[%emt 0:01:34]} 16. Qf3 {[%emt 0:00:56]} Rae8 {[%emt 0:03:05]} 17. h3 {[%emt 0:00:45]} Nf6 {[%emt 0:00:10]} 18. Rae1 {[%emt 0:00:31]} Qd7 {[%emt 0:00:19]} 19. Qc6 {[%emt 0:01:04]} e5 {[%emt 0:00:28]} 20. fxe5 {[%emt 0:00:30]} dxe5 {[%emt 0:00:20]} 21. Qxd7 {[%emt 0:00:08]} Nfxd7 {[%emt 0:00:24]} 22. Nb5 {[%emt 0:00:21]} c6 {[%emt 0:01:27]} 23. Nbd6 {[%emt 0:00:49]} Re6 {[%emt 0:00:02]} 24. d4 {[%emt 0:00:54]} Na6 {[%emt 0:01:21]} 25. c3 {[%emt 0:00:45]} Nc7 {[%emt 0:00:48]} 26. e4 {[%emt 0:00:55]} f4 {[%emt 0:00:28]} 27. dxe5 {[%emt 0:01:06]} b5 {[%emt 0:00:29]} 28. axb5 {[%emt 0:00:37]} cxb5 {[%emt 0:00:02]} 29. Nxa5 {[%emt 0:00:07]} Nxe5 {[%emt 0:00:08]} 30. Rd1 {[%emt 0:00:17]} f3 {[%emt 0:00:52]} 31. Nab7 {[%emt 0:00:43]} fxg2 {[%emt 0:00:30]} 32. Kxg2 {[%emt 0:00:07]} Rxf1 {[%emt 0:00:30]} 33. Kxf1 {[%emt 0:00:07]} Nf3 {[%emt 0:00:24]} 34. Ke2 {[%emt 0:00:19]} Ng5 {[%emt 0:00:08]} 35. Nc5 {[%emt 0:00:29]} Re7 {[%emt 0:00:29]} 36. h4 {[%emt 0:00:07]} Nge6 {[%emt 0:00:19]} 37. Nxe6 {[%emt 0:00:29]} Rxe6 {[%emt 0:00:02]} 38. Kf3 {[%emt 0:00:27]} b4 {[%emt 0:00:04]} 39. Nc4 {[%emt 0:00:08]} bxc3 {[%emt 0:00:07]} 40. Rd8+ {[%emt 0:00:04]} Re8 {[%emt 0:00:03]} 41. Rxe8+ {[%emt 0:00:04]} Nxe8 {[%emt 0:00:01]} 42. Bc1 {[%emt 0:00:01]} Kf7 {[%emt 0:00:10]} 43. e5 {[%emt 0:00:03]} Ke6 {[%emt 0:00:03]} 44. Ke4 {[%emt 0:00:01]} Nc7 {[%emt 0:00:04]} 45. Kd3 {[%emt 0:00:15]} Nd5 {[%emt 0:00:10]} 46. Ke4 {[%emt 0:00:08]} Nb4 {[%emt 0:00:09]} 47. Kd4 {[%emt 0:00:05]} Na2 {[%emt 0:00:12]} 0-1